[Event "Late-Titled-Tuesday-Blitz-June-04-2024"]
[Site "Chess.com"]
[Date "2024.06.04"]
[Round "8"]
[White "howitzer14"]
[Black "Seppppppy"]
[Result "1-0"]
[WhiteElo "3022"]
[BlackElo "2217"]
[TimeControl "180+1"]
[EndTime "15:26:45 PDT"]
[Termination "howitzer14 won by resignation"]

1. d4 {[%clk 0:02:50.9]} 1... Nf6 {[%clk 0:02:54.9]} 2. Bf4 {[%clk 0:02:51.4]}
2... d5 {[%clk 0:02:52]} 3. e3 {[%clk 0:02:51.5]} 3... e6 {[%clk 0:02:52.4]} 4.
c4 {[%clk 0:02:47.9]} 4... Bd6 {[%clk 0:02:50.9]} 5. Bg3 {[%clk 0:02:47.6]} 5...
O-O {[%clk 0:02:49.9]} 6. Nc3 {[%clk 0:02:46.8]} 6... c6 {[%clk 0:02:47.7]} 7.
Nf3 {[%clk 0:02:45.4]} 7... b6 {[%clk 0:02:40.9]} 8. Rc1 {[%clk 0:02:42.9]} 8...
Bb7 {[%clk 0:02:38.9]} 9. cxd5 {[%clk 0:02:34.1]} 9... cxd5 {[%clk 0:02:39.8]}
10. Ne5 {[%clk 0:02:16.4]} 10... Nc6 {[%clk 0:02:26.4]} 11. Bd3 {[%clk
0:02:04.8]} 11... Nb4 {[%clk 0:02:11.2]} 12. Bb1 {[%clk 0:02:01]} 12... Bxe5
{[%clk 0:02:04.3]} 13. Bxe5 {[%clk 0:01:21.1]} 13... Nc6 {[%clk 0:02:02.8]} 14.
Bg3 {[%clk 0:01:18.5]} 14... Qd7 {[%clk 0:01:42.5]} 15. O-O {[%clk 0:01:17]}
15... a6 {[%clk 0:01:39.7]} 16. Na4 {[%clk 0:01:14.9]} 16... Qd8 {[%clk
0:01:37.4]} 17. Qb3 {[%clk 0:01:15.3]} 17... b5 {[%clk 0:01:30.6]} 18. Nc5
{[%clk 0:01:14.5]} 18... Na5 {[%clk 0:01:30]} 19. Qb4 {[%clk 0:01:10.7]} 19...
Nc6 {[%clk 0:01:26.9]} 20. Qc3 {[%clk 0:01:01.1]} 20... b4 {[%clk 0:00:51.9]}
21. Qd3 {[%clk 0:00:31.8]} 21... Na5 {[%clk 0:00:46]} 22. Bh4 {[%clk 0:00:30.2]}
22... g6 {[%clk 0:00:36.9]} 23. Qd2 {[%clk 0:00:20]} 23... Kg7 {[%clk
0:00:30.9]} 24. Qxb4 {[%clk 0:00:19.4]} 24... Rb8 {[%clk 0:00:21.4]} 25. b3
{[%clk 0:00:13.1]} 25... Nc6 {[%clk 0:00:18.8]} 26. Qe1 {[%clk 0:00:09.7]} 26...
Ba8 {[%clk 0:00:17.8]} 27. Nxa6 {[%clk 0:00:08.7]} 27... Rb6 {[%clk 0:00:17.4]}
28. Nc5 {[%clk 0:00:09.6]} 28... Qc7 {[%clk 0:00:17.7]} 29. Rc3 {[%clk
0:00:07.9]} 29... Nd7 {[%clk 0:00:17.8]} 30. Qc1 {[%clk 0:00:08.1]} 30... Nxc5
{[%clk 0:00:17.1]} 31. Rxc5 {[%clk 0:00:09]} 31... Rc8 {[%clk 0:00:16.9]} 32.
Qc3 {[%clk 0:00:09.6]} 32... Qd7 {[%clk 0:00:16.6]} 33. Rc1 {[%clk 0:00:10.2]}
33... Bb7 {[%clk 0:00:16.1]} 34. h3 {[%clk 0:00:10.8]} 34... Ra8 {[%clk
0:00:15.5]} 35. Bg3 {[%clk 0:00:10.2]} 35... Nb4 {[%clk 0:00:15.5]} 36. Rc7
{[%clk 0:00:09.6]} 36... Qe8 {[%clk 0:00:15.3]} 37. Be5+ {[%clk 0:00:10.3]}
37... Kg8 {[%clk 0:00:15.7]} 38. Bf6 {[%clk 0:00:08.9]} 38... Rc6 {[%clk
0:00:15.7]} 39. Qxb4 {[%clk 0:00:08.4]} 39... Rxc1+ {[%clk 0:00:14.6]} 40. Rxc1
{[%clk 0:00:09.3]} 40... Rc8 {[%clk 0:00:14.7]} 41. Rc5 {[%clk 0:00:08.1]} 41...
Bc6 {[%clk 0:00:14.2]} 42. Qc3 {[%clk 0:00:07.9]} 42... Qf8 {[%clk 0:00:14]} 43.
a4 {[%clk 0:00:08.3]} 43... Bb7 {[%clk 0:00:13.8]} 44. Bd3 {[%clk 0:00:08.6]}
44... Rxc5 {[%clk 0:00:14]} 45. Qxc5 {[%clk 0:00:09.5]} 45... Qa8 {[%clk
0:00:14]} 46. Qe7 {[%clk 0:00:09]} 46... h5 {[%clk 0:00:14.5]} 47. Bb5 {[%clk
0:00:09.5]} 47... Bc6 {[%clk 0:00:14.4]} 48. Bxc6 {[%clk 0:00:08.4]} 48... Qxc6
{[%clk 0:00:14.9]} 49. Qd8+ {[%clk 0:00:09.3]} 49... Kh7 {[%clk 0:00:15.4]} 1-0

[Event "Late-Titled-Tuesday-Blitz-June-04-2024"]
[Site "Chess.com"]
[Date "2024.06.04"]
[Round "8"]
[White "ural58"]
[Black "Maus7"]
[Result "0-1"]
[WhiteElo "2425"]
[BlackElo "2564"]
[TimeControl "180+1"]
[EndTime "15:26:46 PDT"]
[Termination "Maus7 won by resignation"]

1. e4 {[%clk 0:02:56.6]} 1... c5 {[%clk 0:02:59.7]} 2. b3 {[%clk 0:02:55.9]}
2... Nf6 {[%clk 0:02:58.5]} 3. e5 {[%clk 0:02:55.9]} 3... Nd5 {[%clk 0:02:59]}
4. Nc3 {[%clk 0:02:55.9]} 4... Nxc3 {[%clk 0:02:58.2]} 5. dxc3 {[%clk 0:02:56]}
5... Nc6 {[%clk 0:02:57.2]} 6. Nf3 {[%clk 0:02:55.5]} 6... g6 {[%clk 0:02:56.9]}
7. Bc4 {[%clk 0:02:54.7]} 7... Bg7 {[%clk 0:02:56.2]} 8. O-O {[%clk 0:02:55]}
8... O-O {[%clk 0:02:53.3]} 9. Bf4 {[%clk 0:02:52.8]} 9... a6 {[%clk 0:02:10.2]}
10. a4 {[%clk 0:02:50.4]} 10... Na5 {[%clk 0:02:07.2]} 11. Bd5 {[%clk
0:02:47.2]} 11... e6 {[%clk 0:01:55.1]} 12. Be4 {[%clk 0:02:46.2]} 12... Qc7
{[%clk 0:01:54.5]} 13. Qd2 {[%clk 0:02:41.7]} 13... Rb8 {[%clk 0:01:52.6]} 14.
Rfd1 {[%clk 0:02:35.4]} 14... b6 {[%clk 0:01:49.4]} 15. Bh6 {[%clk 0:02:28.3]}
15... Bb7 {[%clk 0:01:32.1]} 16. Bxb7 {[%clk 0:02:27]} 16... Rxb7 {[%clk
0:01:33]} 17. Qg5 {[%clk 0:02:26.3]} 17... Nc6 {[%clk 0:01:22.1]} 18. Re1 {[%clk
0:02:19.6]} 18... Qd8 {[%clk 0:01:20.5]} 19. Qf4 {[%clk 0:02:09.6]} 19... f6
{[%clk 0:01:19.5]} 20. Bxg7 {[%clk 0:02:08.7]} 20... Kxg7 {[%clk 0:01:19.2]} 21.
exf6+ {[%clk 0:02:07.4]} 21... Qxf6 {[%clk 0:01:20.1]} 22. Qe3 {[%clk
0:02:05.3]} 22... h6 {[%clk 0:01:11.5]} 23. Rad1 {[%clk 0:02:04.8]} 23... Rf7
{[%clk 0:01:08.2]} 24. Rd6 {[%clk 0:02:04.1]} 24... Ne7 {[%clk 0:01:08.2]} 25.
Ne5 {[%clk 0:01:58.5]} 25... Nf5 {[%clk 0:01:06.9]} 26. Ng4 {[%clk 0:00:51.9]}
26... Nxe3 {[%clk 0:01:06.5]} 27. Nxf6 {[%clk 0:00:51.8]} 27... Nxc2 {[%clk
0:01:06.5]} 28. Ne8+ {[%clk 0:00:46]} 28... Kf8 {[%clk 0:01:06.3]} 29. Re2
{[%clk 0:00:44.6]} 29... Na1 {[%clk 0:01:03.8]} 30. Rb2 {[%clk 0:00:34.3]} 30...
Kxe8 {[%clk 0:00:57.4]} 31. Rd1 {[%clk 0:00:34.6]} 31... Nxb3 {[%clk 0:00:54.8]}
32. Rxb3 {[%clk 0:00:34.5]} 32... Kd8 {[%clk 0:00:50.5]} 33. a5 {[%clk
0:00:30.3]} 33... Kc7 {[%clk 0:00:43.9]} 34. axb6+ {[%clk 0:00:29.4]} 34... Rxb6
{[%clk 0:00:44.8]} 35. Ra3 {[%clk 0:00:28.3]} 35... Rf8 {[%clk 0:00:38]} 36. g3
{[%clk 0:00:26.2]} 36... Ra8 {[%clk 0:00:37]} 37. Rda1 {[%clk 0:00:22.9]} 37...
d5 {[%clk 0:00:34.8]} 38. f4 {[%clk 0:00:20.2]} 38... Kd6 {[%clk 0:00:31.2]} 39.
Kg2 {[%clk 0:00:20.1]} 39... a5 {[%clk 0:00:26.7]} 40. Kf3 {[%clk 0:00:17.1]}
40... c4 {[%clk 0:00:22.3]} 41. Ke3 {[%clk 0:00:16.9]} 41... Rb3 {[%clk
0:00:22.2]} 42. Kd4 {[%clk 0:00:15.9]} 42... Rxa3 {[%clk 0:00:22.4]} 43. Rxa3
{[%clk 0:00:15.6]} 43... a4 {[%clk 0:00:22.8]} 44. g4 {[%clk 0:00:15.8]} 44...
g5 {[%clk 0:00:21.7]} 45. fxg5 {[%clk 0:00:06.7]} 45... e5+ {[%clk 0:00:21.6]}
46. Ke3 {[%clk 0:00:06.6]} 46... hxg5 {[%clk 0:00:22.5]} 47. Kf3 {[%clk
0:00:06.9]} 47... Kc5 {[%clk 0:00:20.5]} 0-1

[Event "Late-Titled-Tuesday-Blitz-June-04-2024"]
[Site "Chess.com"]
[Date "2024.06.04"]
[Round "8"]
[White "garfield_pg"]
[Black "profedechess93"]
[Result "0-1"]
[WhiteElo "2465"]
[BlackElo "2605"]
[TimeControl "180+1"]
[EndTime "15:26:48 PDT"]
[Termination "profedechess93 won on time"]

1. d4 {[%clk 0:03:00.9]} 1... d5 {[%clk 0:02:56.3]} 2. Nf3 {[%clk 0:02:57.6]}
2... Nf6 {[%clk 0:02:55.8]} 3. Bf4 {[%clk 0:02:58.2]} 3... c5 {[%clk 0:02:53.9]}
4. e3 {[%clk 0:02:58.4]} 4... Nc6 {[%clk 0:02:54.2]} 5. Nbd2 {[%clk 0:02:58.6]}
5... cxd4 {[%clk 0:02:53.9]} 6. exd4 {[%clk 0:02:58.8]} 6... Qb6 {[%clk
0:02:54.5]} 7. Nb3 {[%clk 0:02:58.8]} 7... Bg4 {[%clk 0:02:53.3]} 8. c3 {[%clk
0:02:58.2]} 8... a5 {[%clk 0:02:50.1]} 9. Rb1 {[%clk 0:02:51.3]} 9... e6 {[%clk
0:02:40.1]} 10. Bd3 {[%clk 0:02:46.7]} 10... Be7 {[%clk 0:02:34.2]} 11. O-O
{[%clk 0:02:43.9]} 11... O-O {[%clk 0:02:34.2]} 12. Nbd2 {[%clk 0:02:42.9]}
12... Bh5 {[%clk 0:02:28.2]} 13. Qb3 {[%clk 0:02:40.2]} 13... Qa7 {[%clk
0:02:22.4]} 14. a4 {[%clk 0:02:34]} 14... Rfc8 {[%clk 0:02:20.5]} 15. Rbe1
{[%clk 0:02:28.5]} 15... Bg6 {[%clk 0:02:16.3]} 16. Bb5 {[%clk 0:02:27.5]} 16...
Qb6 {[%clk 0:02:06.3]} 17. h3 {[%clk 0:02:21.5]} 17... Nd7 {[%clk 0:01:54.1]}
18. Re3 {[%clk 0:01:41.6]} 18... h6 {[%clk 0:01:51.5]} 19. Rfe1 {[%clk
0:01:40.4]} 19... Nf8 {[%clk 0:01:51.3]} 20. Ne5 {[%clk 0:01:27.3]} 20... Na7
{[%clk 0:01:39.5]} 21. Bf1 {[%clk 0:01:01.3]} 21... Qxb3 {[%clk 0:01:36.7]} 22.
Nxb3 {[%clk 0:01:02.2]} 22... b6 {[%clk 0:01:04.9]} 23. Ba6 {[%clk 0:00:37.3]}
23... Re8 {[%clk 0:00:50.2]} 24. Nxg6 {[%clk 0:00:36]} 24... Nxg6 {[%clk
0:00:49.8]} 25. Bc7 {[%clk 0:00:30.6]} 25... Bg5 {[%clk 0:00:49]} 26. Rd3 {[%clk
0:00:24.4]} 26... Bd8 {[%clk 0:00:47.3]} 27. Bg3 {[%clk 0:00:18.8]} 27... Re7
{[%clk 0:00:40.4]} 28. h4 {[%clk 0:00:09.2]} 28... Bc7 {[%clk 0:00:36.4]} 29.
Bxc7 {[%clk 0:00:04.8]} 29... Rxc7 {[%clk 0:00:36]} 30. g3 {[%clk 0:00:05.4]}
30... Nc6 {[%clk 0:00:34.4]} 31. Bb5 {[%clk 0:00:05.5]} 31... Na7 {[%clk
0:00:34.3]} 32. Ba6 {[%clk 0:00:05]} 32... Ne7 {[%clk 0:00:34.9]} 33. Rf3 {[%clk
0:00:04.3]} 33... Nac6 {[%clk 0:00:33.3]} 34. Bd3 {[%clk 0:00:03.6]} 34... Rb8
{[%clk 0:00:29.4]} 35. Nd2 {[%clk 0:00:03.7]} 35... Na7 {[%clk 0:00:27.4]} 36.
Nb1 {[%clk 0:00:03.9]} 36... b5 {[%clk 0:00:27.7]} 37. axb5 {[%clk 0:00:04.1]}
37... Nxb5 {[%clk 0:00:28.6]} 38. Re2 {[%clk 0:00:03.3]} 38... Nd6 {[%clk
0:00:28.8]} 39. Na3 {[%clk 0:00:03.2]} 39... Rcb7 {[%clk 0:00:28.8]} 40. Rfe3
{[%clk 0:00:01]} 40... Rxb2 {[%clk 0:00:28.1]} 41. Rxb2 {[%clk 0:00:01.7]} 41...
Rxb2 {[%clk 0:00:28.4]} 42. Re1 {[%clk 0:00:01.6]} 42... Rb3 {[%clk 0:00:25.6]}
43. Nb1 {[%clk 0:00:01.5]} 43... Nc4 {[%clk 0:00:21]} 44. Re2 {[%clk 0:00:01.6]}
44... Na3 {[%clk 0:00:17.2]} 0-1

[Event "Late-Titled-Tuesday-Blitz-June-04-2024"]
[Site "Chess.com"]
[Date "2024.06.04"]
[Round "8"]
[White "Pelusiansky"]
[Black "Der_Honigdachs"]
[Result "1-0"]
[WhiteElo "2401"]
[BlackElo "2515"]
[TimeControl "180+1"]
[EndTime "15:26:48 PDT"]
[Termination "Pelusiansky won by checkmate"]

1. d4 {[%clk 0:02:54.4]} 1... Nf6 {[%clk 0:02:59.1]} 2. c4 {[%clk 0:02:54.6]}
2... g6 {[%clk 0:02:57.6]} 3. Nc3 {[%clk 0:02:54.7]} 3... d5 {[%clk 0:02:58]} 4.
Nf3 {[%clk 0:02:54.4]} 4... Bg7 {[%clk 0:02:57.6]} 5. h4 {[%clk 0:02:54.4]} 5...
dxc4 {[%clk 0:02:51.8]} 6. e4 {[%clk 0:02:44]} 6... Bg4 {[%clk 0:02:50.4]} 7.
Bxc4 {[%clk 0:02:13.6]} 7... Nc6 {[%clk 0:02:44.9]} 8. e5 {[%clk 0:01:39.2]}
8... Bxf3 {[%clk 0:02:34.4]} 9. Qxf3 {[%clk 0:01:30.2]} 9... Nxd4 {[%clk
0:02:34.1]} 10. Qxb7 {[%clk 0:01:08.1]} 10... Nc2+ {[%clk 0:02:20.3]} 11. Kf1
{[%clk 0:01:06.9]} 11... Ng4 {[%clk 0:02:12.2]} 12. Qe4 {[%clk 0:00:59.9]} 12...
Nxa1 {[%clk 0:01:54.7]} 13. Qxg4 {[%clk 0:00:59.3]} 13... Nc2 {[%clk 0:01:47.8]}
14. h5 {[%clk 0:00:52.8]} 14... Qd4 {[%clk 0:01:38.6]} 15. Qe2 {[%clk
0:00:51.1]} 15... Nb4 {[%clk 0:01:34.4]} 16. hxg6 {[%clk 0:00:46.1]} 16... hxg6
{[%clk 0:01:32.5]} 17. Rxh8+ {[%clk 0:00:45.3]} 17... Bxh8 {[%clk 0:01:33.4]}
18. a3 {[%clk 0:00:45.2]} 18... Nc6 {[%clk 0:00:59]} 19. Bb5 {[%clk 0:00:44.1]}
19... Qc5 {[%clk 0:00:11.8]} 20. Qe4 {[%clk 0:00:41.3]} 20... Kf8 {[%clk
0:00:09.7]} 21. Qxc6 {[%clk 0:00:40.4]} 21... Qxc6 {[%clk 0:00:09.9]} 22. Bxc6
{[%clk 0:00:41.3]} 22... Rb8 {[%clk 0:00:09]} 23. f4 {[%clk 0:00:39]} 23... f6
{[%clk 0:00:09.3]} 24. exf6 {[%clk 0:00:07.3]} 24... Bxf6 {[%clk 0:00:10.2]} 25.
Ke2 {[%clk 0:00:05.9]} 25... Rb6 {[%clk 0:00:07.1]} 26. Bf3 {[%clk 0:00:04.3]}
26... a5 {[%clk 0:00:04.3]} 27. Kd3 {[%clk 0:00:04.3]} 27... Rd6+ {[%clk
0:00:04.4]} 28. Kc2 {[%clk 0:00:03.3]} 28... Rb6 {[%clk 0:00:05.3]} 29. Be3
{[%clk 0:00:03.4]} 29... Rd6 {[%clk 0:00:05.1]} 30. Nd5 {[%clk 0:00:03.9]} 30...
Bg7 {[%clk 0:00:04.1]} 31. Nxc7 {[%clk 0:00:04.2]} 31... Kg8 {[%clk 0:00:02.3]}
32. Nb5 {[%clk 0:00:03]} 32... Rb6 {[%clk 0:00:02.3]} 33. Bxb6 {[%clk
0:00:02.5]} 33... a4 {[%clk 0:00:02.8]} 34. Be3 {[%clk 0:00:02.6]} 34... Bxb2
{[%clk 0:00:03.7]} 35. Nc3 {[%clk 0:00:03.4]} 35... Bxa3 {[%clk 0:00:04.6]} 36.
Nxa4 {[%clk 0:00:03.8]} 36... g5 {[%clk 0:00:05.5]} 37. Nc3 {[%clk 0:00:04.7]}
37... gxf4 {[%clk 0:00:06.4]} 38. Bxf4 {[%clk 0:00:05.3]} 38... e5 {[%clk
0:00:07.3]} 39. Bxe5 {[%clk 0:00:06]} 39... Bb4 {[%clk 0:00:08]} 40. Bd4 {[%clk
0:00:06.9]} 40... Bd6 {[%clk 0:00:08.5]} 41. Kd3 {[%clk 0:00:07.8]} 41... Bf4
{[%clk 0:00:09]} 42. Ke4 {[%clk 0:00:08.5]} 42... Bg3 {[%clk 0:00:09.9]} 43. Be5
{[%clk 0:00:07.8]} 43... Bxe5 {[%clk 0:00:10.8]} 44. Kxe5 {[%clk 0:00:08.2]}
44... Kg7 {[%clk 0:00:10.7]} 45. Kf5 {[%clk 0:00:08.9]} 45... Kh6 {[%clk
0:00:11.6]} 46. g4 {[%clk 0:00:09.8]} 46... Kg7 {[%clk 0:00:12]} 47. Ne4 {[%clk
0:00:10.7]} 47... Kh8 {[%clk 0:00:12.9]} 48. g5 {[%clk 0:00:11.4]} 48... Kg7
{[%clk 0:00:13.8]} 49. Bh5 {[%clk 0:00:12]} 49... Kh8 {[%clk 0:00:14.7]} 50. Kg6
{[%clk 0:00:12.2]} 50... Kg8 {[%clk 0:00:15.1]} 51. Ng3 {[%clk 0:00:12.5]} 51...
Kh8 {[%clk 0:00:16]} 52. Kf6 {[%clk 0:00:13.1]} 52... Kg8 {[%clk 0:00:16.8]} 53.
g6 {[%clk 0:00:13.7]} 53... Kh8 {[%clk 0:00:17.7]} 54. g7+ {[%clk 0:00:14.1]}
54... Kg8 {[%clk 0:00:18.6]} 55. Bf7+ {[%clk 0:00:14.3]} 55... Kh7 {[%clk
0:00:19.4]} 56. g8=Q+ {[%clk 0:00:14.9]} 56... Kh6 {[%clk 0:00:20.2]} 57. Qg6#
{[%clk 0:00:15.6]} 1-0

[Event "Late-Titled-Tuesday-Blitz-June-04-2024"]
[Site "Chess.com"]
[Date "2024.06.04"]
[Round "8"]
[White "Kielinkei"]
[Black "BerlinDrawer"]
[Result "1/2-1/2"]
[WhiteElo "2455"]
[BlackElo "2574"]
[TimeControl "180+1"]
[EndTime "15:26:49 PDT"]
[Termination "Game drawn by repetition"]

1. c4 {[%clk 0:03:00.9]} 1... c5 {[%clk 0:02:59]} 2. Nf3 {[%clk 0:03:00.6]} 2...
Nf6 {[%clk 0:02:57.6]} 3. d4 {[%clk 0:03:00.5]} 3... cxd4 {[%clk 0:02:57.1]} 4.
Nxd4 {[%clk 0:03:01.4]} 4... Nc6 {[%clk 0:02:55.9]} 5. Nc3 {[%clk 0:03:01.2]}
5... e6 {[%clk 0:02:55.7]} 6. g3 {[%clk 0:03:01]} 6... Qb6 {[%clk 0:02:50.2]} 7.
Ndb5 {[%clk 0:02:57.9]} 7... Ne5 {[%clk 0:02:47.7]} 8. Bg2 {[%clk 0:02:54.5]}
8... a6 {[%clk 0:02:46.7]} 9. Be3 {[%clk 0:02:48.3]} 9... Qa5 {[%clk 0:02:31.1]}
10. Nd6+ {[%clk 0:02:17]} 10... Bxd6 {[%clk 0:02:29.3]} 11. Qxd6 {[%clk
0:02:17.9]} 11... Nxc4 {[%clk 0:02:26.2]} 12. Qc5 {[%clk 0:02:18.4]} 12... Qxc5
{[%clk 0:02:23.5]} 13. Bxc5 {[%clk 0:02:18.3]} 13... Nxb2 {[%clk 0:02:11.8]} 14.
Rb1 {[%clk 0:02:05.4]} 14... Nc4 {[%clk 0:02:07.5]} 15. e4 {[%clk 0:01:58.5]}
15... d6 {[%clk 0:01:59.3]} 16. e5 {[%clk 0:01:44.5]} 16... dxe5 {[%clk
0:01:33.6]} 17. Ke2 {[%clk 0:01:16.6]} 17... Nd7 {[%clk 0:01:15.3]} 18. Ne4
{[%clk 0:00:54.8]} 18... f5 {[%clk 0:01:11.2]} 19. Nd6+ {[%clk 0:00:53.3]} 19...
Nxd6 {[%clk 0:01:10.5]} 20. Bxd6 {[%clk 0:00:54.2]} 20... e4 {[%clk 0:01:10.4]}
21. Rhc1 {[%clk 0:00:50]} 21... b5 {[%clk 0:00:56.9]} 22. a4 {[%clk 0:00:47.1]}
22... bxa4 {[%clk 0:00:51]} 23. f3 {[%clk 0:00:47.1]} 23... Nf6 {[%clk 0:00:48]}
24. fxe4 {[%clk 0:00:39.5]} 24... fxe4 {[%clk 0:00:47.5]} 25. Rc7 {[%clk
0:00:34]} 25... Bd7 {[%clk 0:00:46.3]} 26. Rbb7 {[%clk 0:00:28.3]} 26... Bb5+
{[%clk 0:00:43.6]} 27. Ke1 {[%clk 0:00:23.2]} 27... Nd5 {[%clk 0:00:35.5]} 28.
Rxg7 {[%clk 0:00:19.8]} 28... Rc8 {[%clk 0:00:20.1]} 29. Bxe4 {[%clk 0:00:16.6]}
29... Rc1+ {[%clk 0:00:17.5]} 30. Kf2 {[%clk 0:00:16.8]} 30... Kd8 {[%clk
0:00:16.3]} 31. Rb8+ {[%clk 0:00:15.2]} 31... Rc8 {[%clk 0:00:15.8]} 32. Rbb7
{[%clk 0:00:14.9]} 32... Rc6 {[%clk 0:00:10.5]} 33. Be5 {[%clk 0:00:13.1]} 33...
Rf8+ {[%clk 0:00:08.8]} 34. Kg2 {[%clk 0:00:13.6]} 34... Rc8 {[%clk 0:00:08.7]}
35. Bxh7 {[%clk 0:00:09.6]} 35... Bf1+ {[%clk 0:00:08.3]} 36. Kg1 {[%clk
0:00:09.4]} 36... Rc1 {[%clk 0:00:05.6]} 37. Rb8+ {[%clk 0:00:06.9]} 37... Rc8
{[%clk 0:00:04.4]} 38. Rbb7 {[%clk 0:00:04.5]} 38... Rc1 {[%clk 0:00:04.2]} 39.
Rb8+ {[%clk 0:00:02.1]} 39... Rc8 {[%clk 0:00:04.7]} 40. Rbb7 {[%clk 0:00:02.7]}
1/2-1/2

[Event "Late-Titled-Tuesday-Blitz-June-04-2024"]
[Site "Chess.com"]
[Date "2024.06.04"]
[Round "8"]
[White "dretch"]
[Black "Flawless_Fighter"]
[Result "1/2-1/2"]
[WhiteElo "2860"]
[BlackElo "2696"]
[TimeControl "180+1"]
[EndTime "15:26:51 PDT"]
[Termination "Game drawn by repetition"]

1. d4 {[%clk 0:03:00.9]} 1... Nf6 {[%clk 0:02:59.9]} 2. c4 {[%clk 0:03:01.2]}
2... e6 {[%clk 0:03:00.2]} 3. Nf3 {[%clk 0:03:01.1]} 3... d5 {[%clk 0:03:01.1]}
4. Nc3 {[%clk 0:02:58.6]} 4... c5 {[%clk 0:03:01.4]} 5. cxd5 {[%clk 0:02:56.5]}
5... Nxd5 {[%clk 0:03:02.3]} 6. e4 {[%clk 0:02:53.9]} 6... Nxc3 {[%clk
0:03:02.6]} 7. bxc3 {[%clk 0:02:54.6]} 7... cxd4 {[%clk 0:03:03.3]} 8. cxd4
{[%clk 0:02:54.5]} 8... Bb4+ {[%clk 0:03:03.8]} 9. Bd2 {[%clk 0:02:54.9]} 9...
Bxd2+ {[%clk 0:03:04.5]} 10. Qxd2 {[%clk 0:02:55]} 10... O-O {[%clk 0:03:05.4]}
11. Bc4 {[%clk 0:02:55.2]} 11... Nd7 {[%clk 0:03:05.9]} 12. O-O {[%clk
0:02:52.3]} 12... b6 {[%clk 0:03:06.1]} 13. a4 {[%clk 0:02:51.7]} 13... Bb7
{[%clk 0:03:06.1]} 14. Rfe1 {[%clk 0:02:51.8]} 14... Qc7 {[%clk 0:02:59.9]} 15.
Rac1 {[%clk 0:02:49.4]} 15... Qd6 {[%clk 0:02:56.5]} 16. d5 {[%clk 0:02:15.5]}
16... exd5 {[%clk 0:02:53.4]} 17. e5 {[%clk 0:02:15.7]} 17... Qe7 {[%clk
0:02:46.4]} 18. Bxd5 {[%clk 0:02:12.2]} 18... Bxd5 {[%clk 0:02:46.1]} 19. Qxd5
{[%clk 0:02:12.4]} 19... Nc5 {[%clk 0:02:45.1]} 20. Qc4 {[%clk 0:02:09.7]} 20...
Rac8 {[%clk 0:02:39.6]} 21. h4 {[%clk 0:02:02.9]} 21... h6 {[%clk 0:02:39]} 22.
Red1 {[%clk 0:01:57.2]} 22... Rc7 {[%clk 0:02:38.5]} 23. Qb4 {[%clk 0:01:42.7]}
23... Rfc8 {[%clk 0:02:38]} 24. Rc4 {[%clk 0:01:31.3]} 24... Qe8 {[%clk
0:02:26.8]} 25. Qa3 {[%clk 0:01:15.6]} 25... Ne6 {[%clk 0:02:22.8]} 26. Rxc7
{[%clk 0:01:13.9]} 26... Rxc7 {[%clk 0:02:22.6]} 27. a5 {[%clk 0:01:14.5]} 27...
b5 {[%clk 0:02:17.8]} 28. Qd6 {[%clk 0:01:09.3]} 28... Qc6 {[%clk 0:02:05.8]}
29. a6 {[%clk 0:01:08.3]} 29... Qc4 {[%clk 0:01:43.8]} 30. Nd4 {[%clk
0:00:33.6]} 30... Nxd4 {[%clk 0:01:36.9]} 31. Rxd4 {[%clk 0:00:32.7]} 31... Qc6
{[%clk 0:01:24.2]} 32. h5 {[%clk 0:00:19.5]} 32... Qxd6 {[%clk 0:01:17.4]} 33.
Rxd6 {[%clk 0:00:19.5]} 33... Kf8 {[%clk 0:00:59.8]} 34. Rd8+ {[%clk 0:00:18.7]}
34... Ke7 {[%clk 0:01:00.4]} 35. Rb8 {[%clk 0:00:19.4]} 35... Ke6 {[%clk
0:00:56.4]} 36. Rxb5 {[%clk 0:00:18.7]} 36... Rc6 {[%clk 0:00:56.8]} 37. Ra5
{[%clk 0:00:19.2]} 37... Kf5 {[%clk 0:00:53.7]} 38. Kh2 {[%clk 0:00:17]} 38...
Re6 {[%clk 0:00:46.9]} 39. Kh3 {[%clk 0:00:14.4]} 39... Rxe5 {[%clk 0:00:45.6]}
40. g4+ {[%clk 0:00:14.3]} 40... Kf6 {[%clk 0:00:45.3]} 41. Ra4 {[%clk
0:00:13.9]} 41... Re6 {[%clk 0:00:39]} 42. Kg3 {[%clk 0:00:14.1]} 42... Rb6
{[%clk 0:00:39.1]} 43. Kf4 {[%clk 0:00:14.2]} 43... Ke6 {[%clk 0:00:38.3]} 44.
f3 {[%clk 0:00:13.8]} 44... Kf6 {[%clk 0:00:34.9]} 45. Ke4 {[%clk 0:00:11]}
45... Ke6 {[%clk 0:00:34.1]} 46. f4 {[%clk 0:00:10.7]} 46... f5+ {[%clk
0:00:33.1]} 47. gxf5+ {[%clk 0:00:09.8]} 47... Kf6 {[%clk 0:00:33.7]} 48. Ra5
{[%clk 0:00:09.4]} 48... Rd6 {[%clk 0:00:27.6]} 49. Ke3 {[%clk 0:00:08.8]} 49...
Rb6 {[%clk 0:00:23.1]} 50. Ke4 {[%clk 0:00:09.3]} 50... Rd6 {[%clk 0:00:22.8]}
51. Kf3 {[%clk 0:00:09.7]} 51... Rd3+ {[%clk 0:00:21.9]} 52. Kg4 {[%clk
0:00:09.5]} 52... Rd6 {[%clk 0:00:22.2]} 53. Ra1 {[%clk 0:00:09.3]} 53... Rb6
{[%clk 0:00:22.4]} 54. Ra5 {[%clk 0:00:08.6]} 54... Rc6 {[%clk 0:00:22.5]} 55.
Kg3 {[%clk 0:00:09.1]} 55... Rb6 {[%clk 0:00:22.7]} 56. Kf3 {[%clk 0:00:09.7]}
56... Rc6 {[%clk 0:00:23.3]} 57. Ke4 {[%clk 0:00:10.2]} 57... Rd6 {[%clk
0:00:24]} 1/2-1/2